bitfinex-derivatives/quotes_SOLF0:USTF0_20251211
["timestamp","ask_amount","ask_price","bid_price","bid_amount"]
[1765463833488,0.04837707,131.05,131.02,0.05473885]
[1765463833688,0.04837707,131.05,131.02,3.18473885]
[1765463833901,0.04837707,131.05,131.02,0.05473885]
[1765463834298,0.04837707,131.05,131.02,3.18473885]
[1765463834498,0.04837707,131.05,131.02,0.05473885]
[1765463835100,7.89557707,131.05,131.02,0.05473885]
[1765463835294,0.04837707,131.05,131.02,3.18473885]
[1765463835602,106.7613,131.13,131.04,9.9971]
[1765463835800,107.7413,131.13,131.04,9.9971]
[1765463836398,107.7413,131.13,131.05,3.13]
[1765463836595,1.0382843,131.1,131.08,0.05573976]
[1765463836902,106.7882,131.09,131.01,3.13]
[1765463837404,6.8659,131.08,131.01,9.9989]
[1765463837704,6.8661,131.07,131.01,9.9989]
[1765463837906,0.05000535,131.05,131.03,0.05649774]
[1765463839393,0.05000535,131.05,131.03,3.39649774]
[1765463839596,0.05000535,131.05,131.03,0.05649774]
[1765463840206,0.05000535,131.05,131.03,3.39649774]
[1765463841004,1.03000535,131.05,131.03,0.05649774]
[1765463841396,0.98,131.03,130.94,68.18]
[1765463841800,0.98,131.03,130.95,3.34]
[1765463842303,6.8679,131.04,130.96,3.34]
[1765463842510,107.7897,131.07,130.98,3.39631944]
[1765463842709,0.98,131.07,130.98,3.34]
[1765463843004,1.03,131.02,130.91,106.9288]
[1765463843201,1.03,130.98,130.9,110.2821]
[1765463843410,6.871,130.98,130.92,10.2135]
[1765463843602,0.05674034,130.96,130.94,0.05241344]
[1765463845806,0.05674034,130.96,130.94,3.39241344]
[1765463846011,0.05674034,130.96,130.94,0.05241344]
[1765463846615,107.8624,131.04,130.94,4.91241344]
[1765463846802,107.8624,131.04,130.92,171.7823]
[1765463846803,1.03,131.04,130.95,3.34]
[1765463847401,6.8689,131.02,130.97,3.34]
[1765463847707,0.05355431,131.01,130.98,3.39411178]
[1765463849303,0.05355431,131.01,130.98,0.05411178]
[1765463849509,106.7819,131.1,131.01,3.34]
[1765463849707,106.7977,131.08,131.01,3.34]
[1765463849908,106.7735,131.11,131.02,3.34]
[1765463850505,0.0583109,131.08,131.05,3.3969846]
[1765463851108,0.0583109,131.08,131.05,0.0569846]
[1765463852016,0.0583109,131.08,131.05,3.3969846]
[1765463852218,0.0583109,131.08,131.06,3.34]
[1765463852610,0.0583109,131.08,131.05,0.0569846]
[1765463852919,0.0583109,131.08,131.05,3.3969846]
[1765463853118,6.8619,131.15,131.08,6.865]
[1765463853419,6.8619,131.15,131.07,3.34]
[1765463853723,6.8611,131.17,131.1,3.34]
[1765463854212,64.86,131.18,131.12,3.38874168]
[1765463854415,107.8375,131.22,131.12,3.38874168]
[1765463854617,1.15,131.22,131.16,0.04869239]
[1765463854828,64.86,131.23,131.16,0.04869239]
[1765463854829,1.15,131.2,131.16,0.04869239]
[1765463855032,1.15,131.18,131.16,0.04869239]
[1765463855236,1.15,131.2,131.16,0.04869239]
[1765463855731,1.15,131.19,131.16,0.04869239]
[1765463856033,107.8767,131.17,131.08,3.34]
[1765463856228,6.8626,131.14,131.08,3.34]
[1765463856432,106.7574,131.13,131.04,3.34]
[1765463856631,107.9074,131.13,131.04,3.34]
[1765463856834,6.8641,131.11,131.04,3.34]
[1765463857135,0.05496979,131.09,131.06,0.05250305]
[1765463857924,0.05496979,131.09,131.06,3.39250305]
[1765463859335,1.20496979,131.09,131.06,0.05250305]
[1765463859635,0.05496979,131.09,131.06,3.39250305]
[1765463860730,0.05496979,131.09,131.07,3.34]
[1765463861233,0.05496979,131.09,131.06,0.05250305]
[1765463861437,0.05496979,131.09,131.06,3.39250305]
[1765463862035,1.20496979,131.09,131.06,0.05250305]
[1765463862430,1.15,131.07,131.06,0.05250305]
[1765463862634,6.8657,131.08,131.06,0.05250305]
[1765463863238,0.05496979,131.09,131.06,0.05250305]
[1765463863935,0.05496979,131.09,131.06,3.39250305]
[1765463865332,0.05496979,131.09,131.06,0.05250305]
[1765463866242,6.92006979,131.09,131.06,0.05250305]
[1765463866444,1.20496979,131.09,131.06,0.05250305]
[1765463866942,6.8657,131.08,131.06,0.05250305]
[1765463867442,8.0157,131.08,131.06,0.05250305]
[1765463867939,1.15,131.07,131.06,0.05250305]
[1765463868150,6.8657,131.08,131.06,0.05250305]
[1765463868443,114.60327405,131.09,131.06,0.05250305]
[1765463868444,0.05496979,131.09,131.06,0.05250305]
[1765463869642,0.05496979,131.09,131.06,3.28250305]
[1765463869940,0.05496979,131.09,131.06,0.05250305]
[1765463870241,1.20496979,131.09,131.06,0.05250305]
[1765463870440,8.0155,131.08,131.06,0.05250305]
[1765463871545,6.8655,131.08,131.06,0.05250305]
[1765463871748,0.05496979,131.09,131.06,0.05250305]
[1765463873249,0.05496979,131.09,131.06,3.28250305]
[1765463873651,1.20496979,131.09,131.06,0.05250305]
[1765463874253,0.05496979,131.09,131.06,3.28250305]
[1765463875743,64.84,131.17,131.08,3.23]
[1765463875949,6.8618,131.15,131.08,3.23]
[1765463876540,64.84,131.17,131.11,6.8638]
[1765463876742,107.8587,131.19,131.13,3.28807099]
[1765463876941,1.15,131.19,131.13,3.28807099]
[1765463877546,6.8608,131.17,131.14,3.23]
[1765463878651,6.8616,131.16,131.13,0.05807099]
[1765463878953,1.15,131.17,131.13,0.05807099]
[1765463879652,6.862,131.15,131.13,0.05807099]
[1765463879844,106.7133,131.19,131.13,0.05807099]
[1765463880353,6.8619,131.15,131.13,0.05807099]
[1765463881053,1.15,131.22,131.14,109.9736]
[1765463881257,1.15,131.26,131.2,6.8589]
[1765463881458,8.0061,131.26,131.22,0.0561522]
[1765463881652,73.72530426,131.3,131.22,3.2861522]
[1765463881848,1.15,131.27,131.25,0.04981392]
[1765463882155,114.40020426,131.27,131.18,3.23]
[1765463882955,64.82,131.3,131.21,3.28784376]
[1765463883149,64.82,131.3,131.22,3.23]
[1765463883454,106.6344,131.28,131.22,3.23]
[1765463883854,106.6421,131.27,131.22,3.23]
[1765463884055,1.2,131.26,131.23,0.05684623]
[1765463884263,107.8655,131.25,131.18,3.23]
[1765463884658,106.667,131.24,131.18,3.23]
[1765463884852,107.8655,131.25,131.18,3.23]
[1765463885154,107.8655,131.25,131.19,3.23]
[1765463885155,6.8567,131.25,131.19,3.23]
[1765463885350,6.8567,131.25,131.16,171.5245]
[1765463885351,1.25477782,131.23,131.21,0.04859273]
[1765463885555,0.05477782,131.23,131.21,0.04859273]
[1765463885752,8.11277782,131.23,131.21,0.04859273]
[1765463885949,1.2,131.22,131.17,3.23]
[1765463886147,0.05477782,131.23,131.17,3.23]
[1765463886349,0.05477782,131.23,131.18,3.23]
[1765463886555,0.05477782,131.23,131.19,7.75530426]
[1765463886762,0.05477782,131.23,131.2,3.23]
[1765463886954,0.05477782,131.23,131.2,3.2784206]
[1765463887561,6.8531,131.32,131.25,3.23]
[1765463887758,107.8121,131.37,131.26,3.23]
[1765463887954,106.5535,131.38,131.29,3.23]
[1765463888164,6.8507,131.37,131.3,3.23]
[1765463888367,106.5741,131.36,131.3,3.23]
[1765463888581,0.05066114,131.34,131.32,0.05444595]
[1765463889153,107.88616114,131.34,131.32,0.05444595]
[1765463889355,6.8534,131.32,131.26,3.23]
[1765463889558,106.6017,131.32,131.26,3.23]
[1765463890056,106.5855,131.34,131.26,3.23]
[1765463890572,0.04891901,131.31,131.29,0.05244497]
[1765463891056,114.76231901,131.31,131.29,0.05244497]
[1765463891253,106.6358,131.28,131.22,3.23]
[1765463891454,107.8956,131.27,131.19,3.23]
[1765463891652,106.6604,131.25,131.19,3.23]
[1765463891859,6.858,131.23,131.19,3.23]
[1765463892066,106.6752,131.23,131.15,3.23]
[1765463892262,106.6752,131.23,131.18,0.05465332]
[1765463892263,6.91486921,131.2,131.18,0.05465332]
[1765463893070,0.05536921,131.2,131.18,0.05465332]
[1765463894062,0.05536921,131.2,131.18,3.39465332]
[1765463894258,0.05536921,131.2,131.18,0.05465332]
[1765463894465,0.05536921,131.2,131.18,3.39465332]
[1765463894966,1.30536921,131.2,131.18,0.05465332]
[1765463895174,0.05536921,131.2,131.18,0.05465332]
[1765463895671,6.91486921,131.2,131.18,0.05465332]
[1765463896075,114.86356921,131.2,131.18,0.05465332]
[1765463896262,6.8608,131.17,131.11,71.6236]
[1765463896458,6.8608,131.17,131.12,3.34]
[1765463896660,107.9779,131.17,131.11,64.76]
[1765463896864,106.741,131.15,131.08,3.34]
[1765463897367,0.0488051,131.13,131.1,0.0574181]
[1765463897561,1.2988051,131.13,131.1,0.0574181]
[1765463897759,1.25,131.12,131.1,0.0574181]
[1765463898374,114.878,131.12,131.1,0.0574181]
[1765463898573,8.1137,131.12,131.1,0.0574181]
[1765463898774,0.0488051,131.13,131.1,0.0574181]
[1765463899165,0.0488051,131.13,131.1,3.1574181]
[1765463900171,66.03,131.2,131.11,10.85530426]
[1765463900365,6.8588,131.21,131.13,9.9627]
[1765463900564,106.6988,131.2,131.13,3.1]
[1765463900764,1.25,131.19,131.11,9.9636]
[1765463900962,6.8593,131.2,131.13,3.1]
[1765463901167,0.05822166,131.18,131.15,3.14983986]
[1765463901360,0.05822166,131.18,131.15,0.04983986]
[1765463901562,1.30822166,131.18,131.15,0.04983986]
[1765463901762,0.05822166,131.18,131.15,0.04983986]
[1765463902181,0.05822166,131.18,131.15,3.14983986]
[1765463903175,0.05822166,131.18,131.16,3.1]
[1765463903370,6.8573,131.24,131.16,3.1]
[1765463903582,6.8573,131.24,131.12,64.78]
[1765463903583,106.6828,131.22,131.12,72.53530426]
[1765463903772,106.6995,131.2,131.12,82.49840426]
[1765463903960,106.6995,131.2,131.13,3.1]
[1765463904163,1.25,131.21,131.13,9.9625]
[1765463904361,1.25,131.21,131.12,72.53530426]
[1765463904362,1.30246953,131.18,131.16,0.05789022]
[1765463904970,1.25,131.17,131.16,0.05789022]
[1765463905165,107.9764,131.17,131.09,3.1]
[1765463905364,107.9764,131.17,131.07,72.53530426]
[1765463905365,6.8631,131.13,131.07,64.78]
[1765463905767,106.7502,131.14,131.07,64.78]
[1765463905976,106.7421,131.15,131.07,67.88]
[1765463906174,1.30331311,131.12,131.09,0.057904]
[1765463906365,0.05331311,131.12,131.09,0.057904]
[1765463907176,6.91691311,131.12,131.09,0.057904]
[1765463907479,0.05331311,131.12,131.09,0.057904]
[1765463908373,1.30331311,131.12,131.09,0.057904]
[1765463908582,1.25,131.1,131.09,0.057904]
[1765463908780,6.8641,131.11,131.09,0.057904]
[1765463909184,0.05331311,131.12,131.09,0.057904]
[1765463909475,0.05331311,131.12,131.09,3.157904]
[1765463909669,0.05331311,131.12,131.1,3.1]
[1765463909874,0.05331311,131.12,131.09,0.057904]
[1765463909875,1.30331311,131.12,131.09,0.057904]
[1765463910181,1.25,131.11,131.09,0.057904]
[1765463910377,0.05331311,131.12,131.09,0.057904]
[1765463910574,0.05331311,131.12,131.09,3.157904]
[1765463910972,213.3954,131.21,131.11,3.1]
[1765463911171,214.7054,131.21,131.11,3.1]
[1765463911372,6.8609,131.17,131.1,71.6641]
[1765463911577,108.0263,131.18,131.1,71.6641]
[1765463911777,1.31,131.18,131.11,3.1]
[1765463911978,1.36350607,131.16,131.13,0.05094864]
[1765463912477,0.05350607,131.16,131.13,0.05094864]
[1765463912678,0.05350607,131.16,131.13,3.15094864]
[1765463913587,0.05350607,131.16,131.13,0.05094864]
[1765463914283,0.05350607,131.16,131.13,3.15094864]
[1765463915490,1.36350607,131.16,131.13,0.05094864]
[1765463915683,1.31,131.15,131.13,0.05094864]
[1765463915878,6.862,131.15,131.13,0.05094864]
[1765463916388,8.172,131.15,131.13,0.05094864]
[1765463916683,6.862,131.15,131.13,0.05094864]
[1765463917080,0.05350607,131.16,131.13,3.15094864]
[1765463917690,8.172,131.15,131.13,0.05094864]
[1765463917891,6.862,131.15,131.13,0.05094864]
[1765463918078,0.05350607,131.16,131.13,3.15094864]
[1765463918692,0.05350607,131.16,131.13,0.05094864]
[1765463919685,6.8619,131.15,131.13,0.05094864]
[1765463920084,8.1719,131.15,131.13,0.05094864]
[1765463920388,6.8635,131.12,131.06,64.8]
[1765463920580,6.8635,131.12,131.06,67.9]
[1765463921392,0.0538259,131.1,131.08,3.15037301]
[1765463922287,106.7152,131.18,131.09,3.1]
[1765463922579,6.8619,131.15,131.11,3.1]
[1765463922787,108.0863,131.17,131.08,3.1]
[1765463923190,0.05281642,131.14,131.11,0.05475219]
[1765463923988,6.91521642,131.14,131.11,0.05475219]
[1765463924389,6.91521642,131.14,131.11,3.15475219]
[1765463924896,1.36,131.12,131.11,0.05475219]
[1765463925495,6.863,131.13,131.11,0.05475219]
[1765463926289,0.05281642,131.14,131.11,0.05475219]
[1765463926686,0.05281642,131.14,131.11,3.15475219]
[1765463926898,0.05281642,131.14,131.13,3.1]
[1765463927101,0.05281642,131.14,131.11,3.15475219]
[1765463927603,108.0724,131.19,131.11,3.15475219]
[1765463927795,108.0724,131.19,131.11,3.1]
[1765463928393,6.8615,131.16,131.13,3.1]
[1765463928589,0.05364648,131.16,131.14,3.34]
[1765463929195,0.05364648,131.16,131.13,3.38866826]
[1765463929394,0.05364648,131.16,131.14,15.48453529]
[1765463930499,0.05364648,131.16,131.15,3.34]
[1765463931597,0.05364648,131.16,131.14,15.48453529]
[1765463931808,0.05364648,131.16,131.13,0.04866826]
[1765463932202,6.8618,131.15,131.13,0.04866826]
[1765463932900,0.05364648,131.16,131.14,12.14453529]
[1765463933102,0.05364648,131.16,131.15,3.34]
[1765463933295,1.36,131.2,131.15,3.34]
[1765463933495,106.6944,131.21,131.15,3.34]
[1765463934298,106.6944,131.21,131.17,0.05027528]
[1765463934497,106.6614,131.25,131.18,3.34]
[1765463934798,106.6614,131.25,131.2,3.38905972]
[1765463935201,6.8581,131.23,131.2,3.38905972]
[1765463936102,6.8582,131.22,131.2,0.04905972]
[1765463936305,1.36,131.21,131.2,0.04905972]
[1765463936498,6.8582,131.22,131.2,0.04905972]
[1765463936902,6.8574,131.24,131.2,3.38905972]
[1765463937205,108.0184,131.25,131.2,3.38905972]
[1765463937396,1.36,131.24,131.2,0.04905972]
[1765463937804,6.8581,131.22,131.2,0.04905972]
[1765463939103,8.2175,131.24,131.2,0.04905972]
[1765463939697,6.8577,131.23,131.2,0.04905972]
[1765463939893,1.36,131.23,131.2,0.04905972]
[1765463940404,106.6538,131.26,131.2,3.38905972]
[1765463940608,171.4476,131.27,131.2,3.38905972]
[1765463940806,172.8076,131.27,131.2,15.53359501]
[1765463941005,108.0344,131.23,131.2,0.04905972]
[1765463941201,1.36,131.24,131.2,0.04905972]
[1765463941507,1.36,131.31,131.23,10.1975]
[1765463941703,106.5974,131.33,131.26,3.3881808]
[1765463941905,107.9574,131.33,131.26,3.3881808]
[1765463942408,106.6097,131.31,131.26,3.3881808]
[1765463942711,107.9697,131.31,131.26,3.3881808]
[1765463943196,6.8551,131.28,131.26,0.0481808]
[1765463943402,106.6097,131.31,131.26,3.3881808]
[1765463943599,1.36,131.3,131.26,0.0481808]
[1765463943998,6.8551,131.28,131.26,0.0481808]
[1765463944207,1.36,131.27,131.26,0.0481808]
[1765463944410,1.36,131.27,131.19,14.04540589]
[1765463944411,108.0122,131.26,131.19,15.48453529]
[1765463944606,1.36,131.22,131.15,17.38540589]
[1765463944806,1.36,131.22,131.15,3.34]
[1765463945497,0.04859637,131.2,131.17,0.05355238]
[1765463945696,0.04859637,131.2,131.17,3.39355238]
[1765463945897,0.04859637,131.2,131.18,3.34]
[1765463946309,0.04859637,131.2,131.18,10.2]
[1765463946505,0.04859637,131.2,131.19,3.34]
[1765463947100,0.04859637,131.2,131.17,3.39355238]
[1765463947314,0.04859637,131.2,131.17,0.05355238]
[1765463947507,0.04859637,131.2,131.17,3.39355238]
[1765463947902,0.04859637,131.2,131.17,10.25405238]
[1765463948104,0.04859637,131.2,131.18,3.34]
[1765463949697,0.04859637,131.2,131.17,0.05355238]
[1765463950007,64.78,131.27,131.17,3.39355238]
[1765463950306,1.36,131.29,131.22,3.34]
[1765463950508,106.6301,131.29,131.23,3.34]
[1765463950699,1.41,131.29,131.23,3.34]
[1765463950905,108.0384,131.29,131.21,3.34]
[1765463951203,1.41,131.28,131.24,0.0586273]
[1765463951405,1.41,131.31,131.24,3.3986273]
[1765463952103,64.78,131.34,131.25,15.48453529]
[1765463952314,1.41,131.35,131.28,3.38801894]
[1765463952510,6.8524,131.33,131.29,3.34]
[1765463952813,1.41,131.35,131.3,3.4486433]
[1765463953011,171.3245,131.37,131.3,3.4486433]
[1765463953210,107.9672,131.38,131.31,3.4]
[1765463953409,1.41,131.37,131.33,0.0542807]
[1765463953812,106.5446,131.39,131.33,0.0542807]
[1765463954314,1.41,131.35,131.33,0.0542807]
[1765463954518,107.9437,131.33,131.25,64.76]
[1765463954718,107.9437,131.33,131.25,68.16]
[1765463955014,6.8541,131.3,131.25,68.16]
[1765463955220,8.2041,131.3,131.25,68.16]
[1765463955513,0.0542807,131.29,131.26,3.45051003]
[1765463955719,0.0542807,131.29,131.26,10.30621003]
[1765463956124,0.0542807,131.29,131.26,3.45051003]
[1765463957222,0.0542807,131.29,131.27,3.4]
[1765463957423,0.0542807,131.29,131.26,0.05051003]
[1765463957626,0.0542807,131.29,131.26,3.45051003]
[1765463957820,6.9088807,131.29,131.26,3.45051003]
[1765463958021,1.35,131.28,131.26,0.05051003]
[1765463958224,1.35,131.28,131.16,106.7255]
[1765463958225,106.6428,131.27,131.19,68.14]
[1765463958428,106.6523,131.26,131.19,68.14]
[1765463958618,6.8564,131.26,131.2,3.43]
[1765463959226,0.04872685,131.24,131.22,0.04877271]
[1765463959621,6.90592685,131.24,131.22,0.04877271]
[1765463960727,0.04872685,131.24,131.22,3.47877271]
[1765463961813,6.8557,131.27,131.22,3.47877271]
[1765463962013,106.6096,131.31,131.23,3.43]
[1765463962417,6.8557,131.27,131.22,22.43223529]
[1765463962618,6.8557,131.27,131.23,3.43]
[1765463962814,6.8557,131.27,131.22,19.00223529]
[1765463963026,0.05606388,131.26,131.24,0.05510424]
[1765463964026,8.26236388,131.26,131.24,0.05510424]
[1765463964522,0.05606388,131.26,131.24,0.05510424]
[1765463965424,1.40606388,131.26,131.24,0.05510424]
[1765463965732,1.40606388,131.26,131.19,64.74]
[1765463966031,106.66,131.25,131.19,68.17]
[1765463966229,1.35,131.23,131.19,64.74]
[1765463966624,6.8588,131.21,131.2,0.05656906]
[1765463966825,0.05102539,131.22,131.2,0.05656906]
[1765463967224,1.40102539,131.22,131.2,0.05656906]
[1765463967422,6.90922539,131.22,131.2,0.05656906]
[1765463967731,108.0451,131.21,131.14,68.17]
[1765463968527,0.04900368,131.19,131.16,3.47938462]
[1765463968728,1.35,131.25,131.16,3.43]
[1765463968929,1.35,131.25,131.18,3.43]
[1765463969133,6.8571,131.24,131.19,10.2895]
[1765463969334,1.35,131.25,131.2,3.43]
[1765463969532,64.74,131.27,131.2,3.43]
[1765463969827,0.05494986,131.25,131.22,0.04960029]
[1765463971023,0.05494986,131.25,131.22,3.47960029]
[1765463971620,0.05494986,131.25,131.22,0.04960029]
[1765463971621,1.45494986,131.25,131.22,0.04960029]
[1765463972335,0.05494986,131.25,131.22,3.47960029]
[1765463972534,0.05494986,131.25,131.22,0.04960029]
[1765463973238,1.45494986,131.25,131.22,0.04960029]
[1765463974133,1.4,131.23,131.17,6.8603]
[1765463974332,1.4,131.22,131.16,64.76]
[1765463974924,6.8598,131.19,131.16,64.76]
[1765463975124,6.91574813,131.19,131.16,64.81780347]
[1765463975325,1.45594813,131.19,131.16,0.05780347]
[1765463975524,8.2603,131.18,131.16,0.05780347]
[1765463975723,6.8603,131.18,131.16,0.05780347]
[1765463978346,0.05594813,131.19,131.16,3.48780347]
[1765463978661,108.1152,131.26,131.19,3.43]
[1765463979438,6.8577,131.23,131.19,10.2896]
[1765463979642,0.04918624,131.22,131.2,3.48564292]
[1765463980230,6.90748624,131.22,131.2,0.05564292]
[1765463980435,8.36748624,131.22,131.2,0.05564292]
[1765463980934,6.90748624,131.22,131.2,0.05564292]
[1765463981142,0.04918624,131.22,131.2,3.48564292]
[1765463981342,0.04918624,131.22,131.2,0.05564292]
[1765463981749,6.90738624,131.22,131.2,0.05564292]
[1765463982339,0.04918624,131.22,131.2,3.48564292]
[1765463982539,0.04918624,131.22,131.21,11.17333722]
[1765463982740,0.04918624,131.22,131.2,7.79898014]
[1765463983548,0.04918624,131.22,131.2,11.22898014]
[1765463984341,0.04918624,131.22,131.2,7.79898014]
[1765463984945,0.04918624,131.22,131.21,3.43]
[1765463985156,0.04918624,131.22,131.2,10.34454292]
[1765463985342,0.04918624,131.22,131.2,0.05564292]
[1765463985949,8.36748624,131.22,131.2,0.05564292]
[1765463986244,6.90748624,131.22,131.2,0.05564292]
[1765463986452,0.04918624,131.22,131.2,0.05564292]
[1765463986646,1.50918624,131.22,131.2,0.05564292]
[1765463986848,1.50918624,131.22,131.16,7.74333722]
[1765463987749,6.8598,131.19,131.16,7.74333722]
[1765463987950,6.91176209,131.19,131.16,7.79816192]
[1765463989553,1.46,131.25,131.17,3.17]
[1765463990144,1.46,131.25,131.2,3.17]
[1765463990444,1.46,131.25,131.17,10.91333722]
[1765463990643,1.50859323,131.24,131.21,0.05487136]
[1765463991151,1.46,131.22,131.21,0.05487136]
[1765463991353,8.3177,131.23,131.21,0.05487136]
[1765463991654,6.8577,131.23,131.21,0.05487136]
[1765463992246,8.3177,131.23,131.21,0.05487136]
[1765463992446,1.46,131.22,131.21,0.05487136]
[1765463992848,6.8577,131.23,131.21,0.05487136]
[1765463993851,0.04859323,131.24,131.21,3.22487136]
[1765463994252,0.04859323,131.24,131.22,3.17]
[1765463994947,0.04859323,131.24,131.21,10.08347136]
[1765463995348,0.04859323,131.24,131.21,3.22487136]
[1765463995854,6.90579323,131.24,131.21,0.05487136]
[1765463996056,1.46,131.23,131.21,0.05487136]
[1765463996253,8.318,131.23,131.21,0.05487136]
[1765463996461,1.46,131.22,131.21,0.05487136]
[1765463998147,6.858,131.23,131.21,0.05487136]
[1765463998350,8.318,131.23,131.21,0.05487136]
[1765463998558,1.46,131.22,131.21,0.05487136]
[1765463999347,6.8589,131.21,131.17,3.17]
[1765463999546,1.46,131.21,131.15,64.76]
[1765464000157,6.8598,131.19,131.16,3.17]
[1765464000353,0.05552319,131.19,131.16,3.22048157]
[1765464000550,1.51552319,131.19,131.16,0.05048157]
[1765464000753,6.8603,131.18,131.16,0.05048157]
[1765464000953,8.3203,131.18,131.16,0.05048157]
[1765464001760,1.46,131.17,131.16,0.05048157]
[1765464001954,8.3203,131.18,131.16,0.05048157]
[1765464002362,1.46,131.12,131.08,14.04540589]
[1765464002564,108.2019,131.15,131.08,3.17]
[1765464002759,1.46,131.15,131.08,10.0352]
[1765464002970,6.8627,131.14,131.08,10.0352]
[1765464003258,0.05077363,131.12,131.1,3.22691353]
[1765464003461,1.51000163,131.12,131.1,0.05691353]
[1765464003970,108.2322,131.11,131.03,75.67333722]
[1765464004460,6.8656,131.08,131.04,3.17]
[1765464004960,8.37953576,131.07,131.05,0.05295632]
[1765464005163,6.91953576,131.07,131.05,0.05295632]
[1765464005362,1.46,131.06,131.0,3.17]
[1765464006062,108.2512,131.09,131.01,3.17]
[1765464006261,1.46,131.07,130.98,10.91333722]
[1765464006464,1.51861927,131.06,130.99,6.8699]
[1765464006760,0.05861927,131.06,131.01,3.22789836]
[1765464006967,0.05861927,131.06,131.03,3.17]
[1765464007170,0.05861927,131.06,131.02,3.17]
[1765464007470,1.51861927,131.06,131.02,3.17]
[1765464008169,1.51861927,131.06,131.01,0.05789836]
[1765464008170,1.46,131.05,131.01,0.05789836]
[1765464008358,6.92531927,131.06,131.01,3.22789836]
[1765464008674,8.38531927,131.06,131.01,3.22789836]
[1765464008870,1.46,131.05,131.01,0.05789836]
[1765464009574,8.38531927,131.06,131.01,3.22789836]
[1765464009868,0.05861927,131.06,131.01,3.22789836]
[1765464010172,0.05861927,131.06,131.05,3.17]
[1765464010468,1.46,131.13,131.05,3.17]
[1765464010666,1.46,131.13,131.06,6.8663]
[1765464010862,108.2197,131.13,131.05,3.17]
[1765464011062,6.8641,131.11,131.05,3.17]
[1765464011263,0.04989306,131.09,131.07,3.22721137]
[1765464012772,0.04989306,131.09,131.07,10.09301137]
[1765464013366,0.04989306,131.09,131.08,3.24]
[1765464013569,6.8621,131.15,131.08,3.24]
[1765464013772,1.57,131.15,131.06,75.80333722]
[1765464014275,1.57,131.15,131.07,3.24]
[1765464014476,0.05553045,131.12,131.1,0.05768926]
[1765464014970,0.05553045,131.12,131.1,3.29768926]
[1765464015170,114.46263722,131.18,131.12,6.8631]
[1765464015171,6.8605,131.18,131.12,6.8631]
[1765464015476,108.3381,131.19,131.11,3.24]
[1765464015669,1.63,131.18,131.11,3.24]
[1765464015864,6.8609,131.17,131.11,10.1037]
[1765464016068,0.05805112,131.15,131.13,3.28917204]
[1765464017074,0.05805112,131.15,131.13,10.15177204]
[1765464017579,0.05805112,131.15,131.13,3.28917204]
[1765464017782,0.05805112,131.15,131.13,0.04917204]
[1765464017980,1.68805112,131.15,131.13,0.04917204]
[1765464018881,8.55005112,131.15,131.13,0.04917204]
[1765464019069,6.92005112,131.15,131.13,0.04917204]
[1765464019273,8.54005112,131.15,131.13,0.04917204]
[1765464019479,6.92005112,131.15,131.13,0.04917204]
[1765464020775,8.54005112,131.15,131.13,0.04917204]
[1765464021382,1.62,131.12,131.08,64.82]
[1765464021977,6.8641,131.11,131.08,64.82]
[1765464022177,1.62,131.12,131.08,67.98]
[1765464022373,6.8627,131.14,131.09,3.16]
[1765464022579,0.05091678,131.11,131.09,3.21020353]
[1765464023699,6.8621,131.15,131.11,3.16]
[1765464023887,1.68,131.21,131.14,3.16]
[1765464024287,106.6819,131.23,131.15,3.16]
[1765464024288,8.5397,131.19,131.15,3.16]
[1765464024679,0.05565698,131.18,131.16,0.05170356]
[1765464024879,1.68,131.17,131.16,0.05170356]
[1765464025986,6.91625698,131.18,131.16,0.05170356]
[1765464026380,8.59625698,131.18,131.16,0.05170356]
[1765464026786,1.68,131.17,131.16,0.05170356]
[1765464026990,1.68,131.16,131.1,64.8]
[1765464027390,1.68,131.16,131.09,10.90333722]
[1765464027586,6.8629,131.13,131.09,3.16]
[1765464027785,106.7273,131.17,131.09,3.16]
[1765464027984,0.05599749,131.14,131.12,0.05171508]